bitfinex/quotes_ETHUSD_20250324
["timestamp","ask_amount","ask_price","bid_price","bid_amount"]
[1742845544512,4.78789,2088.6,2088.5,4.57]
[1742845545852,4.78789,2088.6,2088.3,0.8266]
[1742845546142,4.78858,2088.3,2088.2,0.6732148]
[1742845546449,7.78858,2088.3,2088.2,0.6732148]
[1742845546811,4.78835,2088.4,2088.2,0.6732148]
[1742845547011,4.78858,2088.3,2088.2,0.6732148]
[1742845557366,4.78789,2088.6,2088.2,0.6732148]
[1742845557675,9.57709,2088.4,2088.2,0.6732148]
[1742845557971,4.78858,2088.3,2088.2,0.6732148]
[1742845559479,4.78858,2088.3,2088.2,5.2442148]
[1742845560290,4.78858,2088.3,2088.2,0.6732148]
[1742845560436,6.601283,2088.3,2088.2,5.2442148]
[1742845561871,6.601283,2088.3,2088.2,0.6732148]
[1742845562170,6.601283,2088.3,2088.2,5.2432148]
[1742845564078,9.601283,2088.3,2088.2,0.6732148]
[1742845564266,9.601283,2088.3,2088.2,5.2432148]
[1742845564973,9.601283,2088.3,2088.2,0.6732148]
[1742845565278,10.359583,2088.3,2088.2,0.6732148]
[1742845572247,8.54688,2088.3,2088.2,0.6732148]
[1742845572646,7.78858,2088.3,2088.2,0.6732148]
[1742845572871,4.78858,2088.3,2088.2,0.6732148]
[1742845579857,4.78858,2088.3,2088.2,5.2432148]
[1742845589486,4.78858,2088.3,2088.2,4.7757008]
[1742845594503,6.302343,2088.3,2088.2,4.7757008]
[1742845594672,10.118343,2088.3,2088.2,0.2057008]
[1742845597374,9.302343,2088.3,2088.2,0.2057008]
[1742845600370,7.78858,2088.3,2088.2,0.2057008]
[1742845600571,4.78821,2088.5,2088.3,0.8267]
[1742845600777,4.78835,2088.4,2088.3,0.8267]
[1742845606226,4.78817,2088.5,2088.3,0.8267]
[1742845606583,4.78835,2088.4,2088.3,0.8267]
[1742845608081,4.78817,2088.5,2088.3,0.8267]
[1742845608278,4.78817,2088.5,2088.3,2.35041243]
[1742845608714,3.0,2088.7,2088.3,2.35041243]
[1742845609015,4.78791,2088.6,2088.3,0.8267]
[1742845609214,7.78766,2088.7,2088.3,5.61524]
[1742845609419,12.57554,2088.7,2088.4,0.773]
[1742845609718,4.78766,2088.7,2088.4,0.773]
[1742845609930,4.7879,2088.6,2088.4,0.773]
[1742845610130,4.78766,2088.7,2088.4,1.34973508]
[1742845610331,3.0,2088.9,2088.4,6.13795508]
[1742845610494,12.57453,2088.9,2088.5,5.6251977]
[1742845610691,12.57453,2088.9,2088.6,4.568]
[1742845610985,12.57453,2088.9,2088.7,0.7892]
[1742845610986,4.78721,2088.9,2088.7,0.7892]
[1742845611190,4.78743,2088.8,2088.7,0.7892]
[1742845611625,4.78698,2089.0,2088.7,0.7892]
[1742845611785,4.78723,2088.9,2088.7,0.7892]
[1742845613024,3.0,2089.0,2088.7,0.7892]
[1742845613228,7.7871,2089.0,2088.7,0.7892]
[1742845614331,4.78655,2089.2,2088.9,0.8243]
[1742845614485,4.78655,2089.2,2088.9,0.87216696]
[1742845614686,4.78644,2089.3,2088.9,0.87216696]
[1742845615018,9.57282,2089.3,2088.9,0.87216696]
[1742845615351,4.7864,2089.3,2088.9,2.14755964]
[1742845615918,4.7864,2089.3,2089.0,0.8243]
[1742845616096,4.7864,2089.3,2089.1,4.567]
[1742845616515,9.57289,2089.3,2089.1,4.567]
[1742845617130,4.7864,2089.3,2089.1,4.567]
[1742845617737,4.78591,2089.5,2089.1,4.567]
[1742845618034,4.78609,2089.4,2089.2,0.8243]
[1742845619041,4.78591,2089.5,2089.2,0.8243]
[1742845619753,4.78608,2089.4,2089.2,0.8243]
[1742845620367,4.78586,2089.5,2089.2,0.8243]
[1742845620649,4.78616,2089.4,2089.2,0.8243]
[1742845621156,4.78586,2089.5,2089.2,0.8243]
[1742845621450,4.78607,2089.4,2089.2,0.8243]
[1742845624347,7.7856,2089.6,2089.2,0.8243]
[1742845624908,7.78542,2089.7,2089.2,0.8243]
[1742845625137,4.78569,2089.6,2089.2,0.8243]
[1742845625719,5.59475,2089.8,2089.2,5.61059]
[1742845625926,4.78515,2089.8,2089.2,9.88208793]
[1742845626108,4.78515,2089.8,2089.3,5.55137]
[1742845626311,4.78515,2089.8,2089.4,0.8148]
[1742845626765,4.78484,2090.0,2089.5,4.78575]
[1742845626970,4.78502,2089.9,2089.6,5.3798]
[1742845627816,4.78484,2090.0,2089.6,5.3798]
[1742845628007,4.78501,2089.9,2089.6,5.3798]
[1742845628456,9.57013,2089.9,2089.6,5.3798]
[1742845628954,4.78501,2089.9,2089.6,5.3798]
[1742845629543,4.78468,2090.0,2089.6,5.3798]
[1742845629845,7.7846,2090.1,2089.6,10.16533]
[1742845630026,9.56921,2090.1,2089.6,10.16533]
[1742845630365,12.56919,2090.1,2089.6,10.16533]
[1742845630542,7.78459,2090.1,2089.6,10.16533]
[1742845630745,7.78459,2090.1,2089.6,12.26838548]
[1742845630938,4.78459,2090.1,2089.6,12.26838548]
[1742845631132,9.56858,2090.2,2089.7,4.78535]
[1742845631339,4.78423,2090.2,2089.8,0.7633]
[1742845633932,3.0,2090.3,2089.8,0.7633]
[1742845634139,12.56824,2090.3,2089.9,0.7681]
[1742845634344,7.78407,2090.3,2089.9,0.7681]
[1742845634537,4.78407,2090.3,2089.9,0.7681]
[1742845634744,7.81216966,2090.4,2089.9,0.7681]
[1742845634938,7.81216966,2090.4,2089.9,10.33765]
[1742845635139,7.81216966,2090.4,2090.0,5.57607]
[1742845635343,7.81216966,2090.4,2090.1,4.564]
[1742845635668,4.78384,2090.4,2090.1,4.564]
[1742845635960,9.56725,2090.5,2090.2,0.7915]
[1742845636161,7.78354,2090.5,2090.2,0.7915]
[1742845636969,12.56725,2090.5,2090.2,0.7915]
[1742845637671,4.78379,2090.4,2090.2,0.7915]
[1742845639573,4.78367,2090.5,2090.2,0.7915]
[1742845640652,9.56738,2090.5,2090.2,0.7915]
[1742845640974,4.78367,2090.5,2090.2,0.7915]
[1742845641275,7.78336,2090.6,2090.2,0.7915]
[1742845641569,12.56685,2090.6,2090.2,0.7915]
[1742845641943,7.78336,2090.6,2090.2,0.7915]
[1742845642166,12.56685,2090.6,2090.2,0.7915]
[1742845642570,4.78358,2090.5,2090.2,0.7915]
[1742845644001,9.56611,2090.8,2090.2,4.81345]
[1742845644144,4.78315,2090.7,2090.3,5.54983]
[1742845644499,4.78334,2090.6,2090.3,0.766]
[1742845647080,9.56683,2090.6,2090.3,0.766]
[1742845649044,4.78334,2090.6,2090.3,0.766]
[1742845649240,4.78334,2090.6,2090.3,2.40745148]
[1742845649673,0.8068,2091.1,2090.4,0.8252]
[1742845650009,4.78293,2090.8,2090.4,0.8252]
[1742845650478,9.56595,2090.8,2090.4,0.87303294]
[1742845650693,9.56595,2090.8,2090.4,2.08125738]
[1742845651044,4.78293,2090.8,2090.4,2.08125738]
[1742845651240,4.78293,2090.8,2090.4,6.86501738]
[1742845651445,9.56596,2090.8,2090.4,6.86501735]
[1742845652374,4.78314,2090.7,2090.4,0.8252]
[1742845652961,4.78282,2090.9,2090.4,0.8252]
[1742845653158,3.0,2091.2,2090.7,0.8188]
[1742845653356,3.0,2091.2,2090.8,4.561]
[1742845653357,4.78252,2091.0,2090.8,4.561]
[1742845653886,4.78231,2091.1,2090.8,4.561]
[1742845654185,0.019,2091.4,2091.3,4.78171]
[1742845654481,4.78089,2091.7,2091.5,0.8188]
[1742845654658,4.78089,2091.7,2091.2,4.78184]
[1742845654659,7.78089,2091.7,2091.6,4.561]
[1742845654858,4.78089,2091.7,2091.6,4.561]
[1742845655079,0.8176,2091.9,2091.6,4.561]
[1742845655283,4.7802,2092.0,2091.7,0.4561]
[1742845655457,0.8108,2092.9,2091.8,0.82870797]
[1742845655662,4.78015,2092.0,2091.9,4.561]
[1742845658991,4.78046,2091.9,2091.7,25.288]
[1742845659183,4.78057,2091.8,2091.7,25.288]
[1742845659398,4.78057,2091.8,2091.7,29.848]
[1742845661491,3.0,2091.9,2091.7,32.8328]
[1742845661690,7.78035,2091.9,2091.7,32.8328]
[1742845661990,7.78035,2091.9,2091.7,29.848]
[1742845662489,0.8108,2092.3,2091.8,0.7691]
[1742845662670,4.77999,2092.1,2091.8,0.7691]
[1742845663190,4.78013,2092.0,2091.8,0.7691]
[1742845663892,3.0,2092.2,2091.8,0.7691]
[1742845664055,9.55861,2092.4,2091.9,7.88977041]
[1742845664262,9.55861,2092.4,2091.9,7.84197]
[1742845664689,4.7792,2092.4,2091.9,7.84197]
[1742845665076,9.55851,2092.4,2092.0,0.8319]
[1742845665369,4.7792,2092.4,2092.0,5.61199]
[1742845665568,4.7792,2092.4,2092.1,1.345396]
[1742845665879,4.7792,2092.4,2092.2,4.558]
[1742845666183,4.77942,2092.3,2092.2,4.558]
[1742845666384,4.7792,2092.4,2092.2,4.558]
[1742845666567,4.77942,2092.3,2092.2,4.558]
[1742845667019,9.55852,2092.4,2092.2,4.558]
[1742845667365,9.55856,2092.4,2092.2,4.558]
[1742845667565,7.779,2092.5,2092.2,4.558]
[1742845667794,3.0,2092.7,2092.2,5.57976367]
[1742845668067,4.77899,2092.5,2092.2,5.57976367]
[1742845668708,4.77886,2092.6,2092.3,0.8319]
[1742845669003,4.77897,2092.5,2092.3,0.8319]
[1742845669204,9.55779,2092.6,2092.3,0.8319]
[1742845669565,4.77901,2092.5,2092.3,0.8319]
[1742845670804,4.7792,2092.4,2092.3,0.8319]
[1742845671011,4.77962,2092.3,2092.0,1.18857965]
[1742845671207,4.77962,2092.3,2092.1,4.557]
[1742845671709,4.7792,2092.4,2092.1,4.557]
[1742845672015,4.77944,2092.3,2092.1,4.557]
[1742845675308,7.77901,2092.5,2092.1,4.557]
[1742845675607,4.77921,2092.4,2092.1,4.557]
[1742845675772,4.77921,2092.4,2092.1,8.35736376]
[1742845676274,4.77921,2092.4,2092.2,0.8245]
[1742845676695,4.77942,2092.3,2092.2,0.8245]
[1742845677409,4.77924,2092.4,2092.2,0.8245]
[1742845678379,7.77897,2092.5,2092.2,0.8245]
[1742845678998,6.7636,2092.9,2092.2,2.45616248]
[1742845679209,4.77872,2092.7,2092.2,2.45616248]
[1742845679414,4.77884,2092.6,2092.2,7.23574248]
[1742845680313,4.77898,2092.5,2092.2,8.48837287]
[1742845680873,4.77884,2092.6,2092.2,8.48837287]
[1742845681073,4.77884,2092.6,2092.2,8.5361624]
[1742845681273,4.77884,2092.6,2092.3,1.47784193]
[1742845682122,4.77879,2092.6,2092.3,1.47784193]
[1742845683021,4.77879,2092.6,2092.3,1.52563149]
[1742845683207,4.77879,2092.6,2092.3,1.47784193]
[1742845683415,4.77879,2092.6,2092.3,1.92337979]
[1742845683816,4.77898,2092.5,2092.3,0.44553786]
[1742845684128,4.7792,2092.4,2092.3,0.44553786]
[1742845684338,4.77898,2092.5,2092.3,5.00153786]
[1742845684882,4.77841,2092.8,2092.4,5.53842]
[1742845685128,4.77801,2093.0,2092.4,0.7593]
[1742845685297,4.77831,2092.8,2092.5,0.62387015]
[1742845685493,4.77831,2092.8,2092.5,0.57608379]
[1742845686214,3.0,2093.1,2092.5,0.57608379]
[1742845686422,3.0,2093.1,2092.4,0.7593]
[1742845686423,4.77873,2092.7,2092.6,0.44553786]
[1742845686730,4.77873,2092.7,2092.6,5.00153786]
[1742845687022,5.60373,2092.7,2092.6,4.556]
[1742845687217,8.60373,2092.7,2092.6,4.556]
[1742845687407,4.77965,2092.2,2092.1,25.264]
[1742845687919,4.77949,2092.3,2092.1,25.264]
[1742845688102,9.55918,2092.3,2092.1,25.264]
[1742845688318,4.77957,2092.3,2092.1,25.264]
[1742845688521,4.77957,2092.3,2092.2,4.556]
[1742845689392,4.77965,2092.2,2092.1,25.264]
[1742845689582,4.77965,2092.2,2092.1,29.82]
[1742845692492,9.55918,2092.3,2092.1,29.82]
[1742845693188,4.77965,2092.2,2092.1,29.82]
[1742845694438,8.735572,2092.2,2092.1,29.82]
[1742845694627,8.735572,2092.2,2092.1,4.556]
[1742845695912,4.78011,2092.0,2091.9,0.58540306]
[1742845696114,4.78011,2092.0,2091.9,5.14140306]
[1742845696513,4.78011,2092.0,2091.9,0.58540306]
[1742845696709,4.78011,2092.0,2091.9,5.14140306]
[1742845697240,4.78011,2092.0,2091.9,0.58540306]
[1742845697443,6.3096772,2092.0,2091.9,5.14140306]
[1742845697630,4.78011,2092.0,2091.9,5.14140306]
[1742845699036,9.55995,2092.1,2091.9,5.14140306]
[1742845699237,4.78011,2092.0,2091.9,5.14140306]
[1742845704052,4.78011,2092.0,2091.9,5.93270306]
[1742845704926,4.78011,2092.0,2091.9,5.14140306]
[1742845705340,4.78011,2092.0,2091.9,5.74206374]
[1742845705543,4.78011,2092.0,2091.9,5.14140306]
[1742845705729,8.56503,2092.3,2092.0,0.8174]
[1742845705730,4.77967,2092.2,2092.0,0.8174]
[1742845705944,4.77988,2092.1,2092.0,0.8174]
[1742845707721,4.78011,2092.0,2091.9,5.14140306]
[1742845708255,4.77968,2092.2,2091.9,5.14140306]
[1742845708256,4.77991,2092.1,2091.9,5.14140306]
[1742845708460,4.77968,2092.2,2091.9,6.21371337]
[1742845708634,9.55951,2092.2,2091.9,6.21371337]
[1742845709038,4.77968,2092.2,2091.9,6.21371337]
[1742845709357,4.7799,2092.1,2091.9,6.21371337]
[1742845709745,4.7799,2092.1,2091.9,5.14140306]
[1742845709945,4.78011,2092.0,2091.9,0.58540306]
[1742845710127,4.78011,2092.0,2091.9,5.14140306]
[1742845710321,4.78011,2092.0,2091.9,0.58540306]
[1742845710527,4.78011,2092.0,2091.9,5.14140306]
[1742845712255,4.78011,2092.0,2091.9,5.12321906]
[1742845716075,9.60522194,2092.0,2091.9,5.12321906]
[1742845716477,9.60522194,2092.0,2091.9,0.56721906]
[1742845718173,15.61522194,2092.0,2091.9,0.56721906]
[1742845719173,15.61522194,2092.0,2091.9,9.06e-06]
[1742845719174,16.16522194,2092.0,2091.9,9.06e-06]
[1742845725798,8.57814,2091.9,2091.8,4.556]
[1742845725995,11.15097619,2091.9,2091.8,4.556]
[1742845727902,4.78194,2091.2,2091.1,1.19472067]
[1742845728107,4.78194,2091.2,2091.1,0.8314]
[1742845728908,3.0,2091.6,2091.1,5.61076]
[1742845729110,4.78178,2091.3,2091.2,4.556]
[1742845729308,4.78157,2091.4,2091.2,7.62146]
[1742845729505,4.78139,2091.5,2091.3,0.7988]
[1742845729689,4.78148,2091.4,2091.3,0.7988]
[1742845734312,4.78148,2091.4,2091.2,7.62146]
[1742845734313,4.78171,2091.3,2091.2,4.556]
[1742845736617,4.78155,2091.4,2091.2,4.556]
[1742845736805,4.78171,2091.3,2091.2,8.094623]
[1742845740217,4.78171,2091.3,2091.2,4.556]
[1742845741227,4.78126,2091.5,2091.2,4.556]
[1742845741429,4.78126,2091.5,2091.3,0.8084]
[1742845742414,4.78148,2091.4,2091.3,0.8084]
[1742845744337,4.78171,2091.3,2091.2,4.556]
[1742845748829,4.78148,2091.4,2091.2,8.098699]
[1742845749195,4.78171,2091.3,2091.1,0.8186]
[1742845749420,4.78171,2091.3,2091.2,4.556]
[1742845751329,4.78155,2091.4,2091.2,4.556]
[1742845752037,4.78171,2091.3,2091.2,4.556]
[1742845756526,4.78149,2091.4,2091.2,4.556]
[1742845756838,9.56315,2091.4,2091.2,4.556]
[1742845757042,4.78149,2091.4,2091.2,4.556]
[1742845757238,9.56314,2091.4,2091.2,4.556]
[1742845757415,4.78149,2091.4,2091.2,4.556]
[1742845757831,9.56315,2091.4,2091.2,4.556]
[1742845758418,4.78171,2091.3,2091.2,4.556]
[1742845759538,4.78149,2091.4,2091.2,4.556]
[1742845759742,3.8123,2091.6,2091.2,4.556]
[1742845759944,4.78158,2091.4,2091.2,4.556]
[1742845760443,9.56326,2091.4,2091.2,4.556]
[1742845760847,4.78171,2091.3,2091.2,4.556]
[1742845761145,4.78158,2091.4,2091.2,4.556]
[1742845761332,4.78158,2091.4,2091.2,8.098685]
[1742845762050,6.01,2091.7,2091.3,0.7905]
[1742845762051,4.78084,2091.7,2091.3,0.7905]
[1742845762349,7.78109,2091.6,2091.3,0.7905]
[1742845763134,12.5623,2091.6,2091.3,0.7905]
[1742845763341,4.7813,2091.5,2091.3,0.7905]
[1742845763947,7.78109,2091.6,2091.3,0.7905]
[1742845764327,4.7806,2091.8,2091.4,4.78131]
[1742845764532,10.79051,2091.9,2091.5,4.78117]
[1742845764855,10.79051,2091.9,2091.5,5.14181561]
[1742845765444,4.78059,2091.8,2091.5,5.14181561]
[1742845765761,15.5709,2091.9,2091.5,6.39735852]
[1742845766254,4.78059,2091.8,2091.5,6.39735852]
[1742845767423,4.78059,2091.8,2091.5,1.61621852]
[1742845767831,4.78086,2091.7,2091.5,1.61621852]
[1742845769161,4.78125,2091.5,2091.3,1.8453135]
[1742845769316,4.78102,2091.6,2091.3,27.1193135]
[1742845769859,4.78129,2091.5,2091.3,27.1193135]
[1742845770049,4.78129,2091.5,2091.3,25.274]
[1742845770357,4.7814,2091.5,2091.3,25.274]
[1742845770595,4.7814,2091.5,2091.4,4.556]
[1742845773455,4.78148,2091.4,2091.3,25.274]
[1742845773753,4.78104,2091.6,2091.3,29.829]
[1742845774251,10.79081,2091.7,2091.5,0.7743]
[1742845776067,4.78102,2091.6,2091.3,34.74864648]
[1742845776425,4.78128,2091.5,2091.3,30.6033]
[1742845777800,4.78128,2091.5,2091.3,25.274]
[1742845777977,4.78148,2091.4,2091.3,25.274]
[1742845778147,4.78148,2091.4,2091.3,29.829]
[1742845778991,4.78148,2091.4,2091.3,4.555]
[1742845785411,4.78182,2091.3,2091.0,25.273]
[1742845785757,4.7818,2091.3,2091.1,4.555]
[1742845786067,9.56369,2091.3,2091.1,4.555]
[1742845786299,4.78195,2091.2,2091.0,25.273]
[1742845786596,4.78195,2091.2,2091.1,4.555]
[1742845787183,4.7818,2091.3,2091.1,4.555]
[1742845789099,4.78194,2091.2,2091.1,4.555]
[1742845790498,4.78177,2091.3,2091.1,4.555]
[1742845791583,9.56364,2091.3,2091.1,4.555]
[1742845793291,4.78194,2091.2,2091.1,4.555]
[1742845793482,4.78176,2091.3,2091.1,4.555]
[1742845796272,9.56364,2091.3,2091.1,4.555]
[1742845796797,4.78194,2091.2,2091.1,4.555]
[1742845797991,4.78176,2091.3,2091.1,4.555]
[1742845798297,4.78157,2091.4,2091.1,4.555]
[1742845798498,5.54009,2091.5,2091.1,9.33699]
[1742845798992,4.78155,2091.4,2091.1,9.33699]
[1742845799359,4.78155,2091.4,2091.1,4.555]
[1742845800201,0.7588,2091.5,2091.0,0.04782149]
[1742845800408,0.802,2091.1,2090.7,4.555]
[1742845800573,4.7827,2090.9,2090.7,4.555]
[1742845800765,4.78194,2091.2,2090.7,9.38582053]
[1742845800965,4.78263,2090.9,2090.7,4.555]
[1742845801195,4.78285,2090.8,2090.6,0.817]
[1742845801510,4.78285,2090.8,2090.4,5.14106876]
[1742845801511,4.78285,2090.8,2090.7,4.555]
[1742845802401,4.78199,2091.2,2090.7,10.12055]
[1742845802402,0.8304,2091.2,2090.7,10.12055]
[1742845802571,4.7823,2091.1,2090.7,10.57605]
[1742845802764,4.78244,2091.0,2090.7,10.57605]
[1742845802968,4.78244,2091.0,2090.7,5.7931]
[1742845803205,9.56503,2091.0,2090.7,5.7931]
[1742845803530,4.78244,2091.0,2090.7,5.7931]
[1742845803696,0.8304,2091.2,2090.5,0.7826]
[1742845803999,0.8304,2091.2,2090.3,26.0576]
[1742845804000,4.78362,2090.5,2090.3,26.0576]
[1742845804168,4.78377,2090.4,2090.3,25.275]
[1742845804364,4.78377,2090.4,2090.3,29.83]
[1742845805374,4.78377,2090.4,2090.3,25.275]
[1742845805577,7.02494,2090.4,2090.3,29.83]
[1742845805773,7.02494,2090.4,2089.3,4.78615]
[1742845805774,4.78498,2089.9,2089.5,5.61551]
[1742845805973,4.78498,2089.9,2089.6,25.276]
[1742845806367,0.8061,2090.0,2089.6,25.276]
[1742845806604,4.78523,2089.8,2089.6,25.276]
[1742845806894,4.78491,2089.9,2089.6,25.276]
[1742845807097,4.78491,2089.9,2089.7,4.555]
[1742845807463,5.59078,2090.0,2089.7,4.555]
[1742845807665,4.78493,2089.9,2089.7,4.555]
[1742845808063,4.78537,2089.7,2089.6,25.276]
[1742845808303,4.78537,2089.7,2089.6,29.831]
[1742845808491,5.742421,2089.7,2089.6,29.831]
[1742845808688,5.742421,2089.7,2089.6,25.276]
[1742845808890,5.742421,2089.7,2089.6,29.831]
[1742845809200,4.78537,2089.7,2089.6,29.831]
[1742845811890,4.78514,2089.8,2089.6,29.831]
[1742845812287,4.78491,2089.9,2089.6,29.831]
[1742845812488,3.8061,2090.0,2089.6,29.831]
[1742845812693,9.57067,2089.8,2089.6,29.831]
[1742845812880,9.57064,2089.8,2089.6,29.831]
[1742845813081,4.78531,2089.8,2089.6,29.831]
[1742845813286,4.78492,2089.9,2089.6,29.831]
[1742845814089,4.78514,2089.8,2089.6,29.831]
[1742845816117,13.3757,2090.0,2089.6,29.831]
[1742845816323,11.62525,2090.2,2089.6,33.374677]
[1742845816489,6.01,2090.2,2089.8,4.78505]
[1742845816687,10.79426,2090.2,2089.8,0.7718]
[1742845816887,4.78448,2090.1,2089.8,5.02896276]
[1742845817117,4.78448,2090.1,2089.8,4.6649887]
[1742845817306,4.78472,2090.0,2089.8,0.7718]
[1742845817507,4.78472,2090.0,2089.6,35.36841]
[1742845817789,4.78492,2089.9,2089.6,30.583]
[1742845818918,4.78523,2089.8,2089.6,29.831]
[1742845820512,4.78497,2089.9,2089.6,29.831]
[1742845820820,4.78492,2089.9,2089.6,34.61639]
[1742845821124,5.58345,2090.0,2089.6,38.635403]
[1742845821310,10.36832,2090.0,2089.6,38.635403]
[1742845821502,10.36831,2090.0,2089.6,38.635403]
[1742845821700,4.78509,2089.9,2089.6,29.831]
[1742845821888,4.78523,2089.8,2089.6,29.831]
[1742845822089,9.57021,2089.9,2089.6,29.831]
[1742845822302,4.78509,2089.9,2089.6,29.831]
[1742845823237,5.58344,2090.0,2089.6,34.61654]
[1742845823394,4.78491,2089.9,2089.6,34.61654]
[1742845823600,4.78447,2090.1,2089.6,34.61654]
[1742845823601,3.0,2090.1,2089.7,4.78537]
[1742845823801,3.0,2090.1,2089.7,5.59477]
[1742845824129,4.7849,2090.0,2089.7,0.8094]
[1742845824329,4.78494,2089.9,2089.7,0.8094]
[1742845824910,7.78448,2090.1,2089.7,0.8094]
[1742845825116,4.78475,2090.0,2089.7,0.8094]
[1742845826137,4.78475,2090.0,2089.7,5.16351821]
[1742845827735,9.56963,2090.0,2089.7,5.16351821]
[1742845827903,4.78475,2090.0,2089.7,5.16351821]
[1742845828606,4.78522,2089.8,2089.6,29.831]
[1742845829344,4.78493,2089.9,2089.6,29.831]
[1742845829702,4.78493,2089.9,2089.6,34.61659]
[1742845829942,3.8257,2090.2,2089.7,4.83318201]
[1742845830127,10.79403,2090.3,2089.9,4.7848]
[1742845830440,10.794,2090.3,2089.9,5.3476552]
[1742845830669,10.794,2090.3,2089.9,5.395502]
[1742845830841,4.78424,2090.2,2089.9,5.3477252]
[1742845831014,4.78424,2090.2,2089.9,0.5629252]
[1742845831341,0.21124037,2090.1,2089.9,0.5629252]
[1742845831745,4.99572037,2090.1,2089.8,1.15873783]
[1742845831956,4.99572037,2090.1,2089.9,4.557]
[1742845831957,4.78487,2090.0,2089.9,4.557]
[1742845832250,9.77974133,2090.0,2089.9,4.557]
[1742845832405,4.78517,2089.8,2089.6,25.276]
[1742845832600,4.78517,2089.8,2089.7,4.557]
[1742845833137,4.78537,2089.7,2089.6,25.276]
[1742845833438,4.785,2089.9,2089.6,30.6401]
[1742845833737,4.78527,2089.8,2089.6,29.833]
[1742845835236,4.78537,2089.7,2089.6,29.833]
[1742845835553,4.78527,2089.8,2089.6,29.833]
[1742845835713,4.78537,2089.7,2089.6,29.833]
[1742845836550,5.56757,2089.7,2089.6,29.833]
[1742845838939,7.203854,2089.7,2089.6,29.833]
[1742845839352,6.421654,2089.7,2089.6,29.833]
[1742845839568,4.78537,2089.7,2089.6,29.833]
[1742845840576,4.78537,2089.7,2089.6,4.557]
[1742845840955,11.57074,2089.9,2089.6,4.557]
[1742845841281,6.01,2089.9,2089.8,5.61784]
[1742845841843,6.01,2089.9,2089.8,0.8327]
[1742845844275,9.56911,2090.1,2089.8,0.8327]
[1742845844877,4.78452,2090.1,2089.8,0.8327]
[1742845845979,0.18552273,2090.0,2089.8,0.8327]
[1742845848282,4.97021273,2090.0,2089.8,0.8327]
[1742845848482,0.18552273,2090.0,2089.8,0.8327]
[1742845850379,4.97029273,2090.0,2089.8,0.8327]
[1742845850709,0.18552273,2090.0,2089.8,0.8327]
[1742845851146,0.18552273,2090.0,2089.8,5.61783]
[1742845851350,0.18552273,2090.0,2089.9,5.54391]
[1742845851554,10.79387,2090.4,2089.9,10.32882]
[1742845851779,4.78387,2090.4,2089.9,5.54391]
[1742845852029,0.15477689,2090.3,2089.9,5.54391]
[1742845852173,4.93879689,2090.3,2089.9,5.54391]
[1742845852492,4.78426,2090.2,2089.9,0.759]
[1742845852866,0.15399705,2090.1,2089.9,0.759]
[1742845853055,0.15399705,2090.1,2089.9,7.58731788]
[1742845853275,0.15399705,2090.1,2089.9,7.58725788]
[1742845853604,0.14189162,2090.0,2089.9,7.58725788]
[1742845853789,4.78407,2090.3,2089.9,7.58725788]
[1742845854100,0.14189162,2090.0,2089.9,1.11997581]
[1742845854275,4.78423,2090.2,2089.9,5.90487581]
[1742845854468,0.14189162,2090.0,2089.9,5.90487581]
[1742845854668,4.78423,2090.2,2089.9,5.90487581]
[1742845854868,0.14189162,2090.0,2089.9,5.90487581]
[1742845855081,4.78403,2090.3,2089.9,8.07861895]
[1742845855282,0.1419152,2090.0,2089.9,8.07861895]
[1742845855481,9.56825,2090.3,2089.9,8.07861895]
[1742845855786,4.78403,2090.3,2089.9,5.90487581]
[1742845855993,0.14269511,2090.2,2089.9,5.90487581]
[1742845856189,4.78403,2090.3,2089.9,5.90487581]
[1742845856403,0.14230518,2090.1,2089.9,5.90487581]
[1742845856601,4.78403,2090.3,2089.9,5.90487581]
[1742845856804,0.1419152,2090.0,2089.9,5.90487581]
[1742845857004,4.78403,2090.3,2089.9,8.07861895]
[1742845857204,0.1419152,2090.0,2089.9,5.90487581]
[1742845857405,4.78403,2090.3,2089.9,5.90487581]
[1742845857605,0.1419152,2090.0,2089.9,5.90487581]
[1742845857772,3.0,2090.6,2089.9,5.90487581]
[1742845857773,4.78294,2090.8,2090.0,0.8165]
[1742845857968,10.79222,2091.1,2090.0,0.8165]
[1742845857969,4.7826,2091.0,2090.5,0.8165]
[1742845858202,4.7826,2091.0,2090.6,4.60382986]
[1742845858370,4.78259,2091.0,2090.6,4.60382833]
[1742845858571,4.78257,2091.0,2090.6,4.60382833]
[1742845859201,10.79219,2091.1,2090.7,5.55797]
[1742845859374,6.01,2091.1,2090.7,5.55781]
[1742845859576,6.01,2091.1,2090.7,6.6251937]
[1742845859776,6.01,2091.1,2090.7,31.9161937]
[1742845860490,10.79217,2091.1,2090.7,27.1332837]
[1742845860697,6.01,2091.1,2090.8,0.04782405]
[1742845861098,0.133437,2091.0,2090.8,0.04782405]
[1742845861415,4.916017,2091.0,2090.9,4.556]
[1742845861584,5.739417,2091.0,2090.9,4.556]
[1742845862115,0.133437,2091.0,2090.9,4.556]
[1742845862479,0.133437,2091.0,2090.9,7.5407]
[1742845862813,4.78221,2091.1,2090.9,4.556]
[1742845862992,4.915837,2091.0,2090.9,4.556]
[1742845864389,4.78271,2090.9,2090.7,25.291]
[1742845864582,4.78271,2090.9,2090.8,4.555]
[1742845869291,3.7748,2091.1,2090.8,4.555]
[1742845869488,7.78233,2091.1,2090.8,4.555]
[1742845869702,4.78247,2091.0,2090.8,4.555]